bitfinex/quotes_BTCUSD_20250718
["timestamp","ask_amount","ask_price","bid_price","bid_amount"]
[1752804302368,0.00197338,120210.0,120200.0,1.6286308]
[1752804303238,0.00197338,120210.0,120200.0,1.14220574]
[1752804303453,0.00197338,120210.0,120200.0,1.6286308]
[1752804304203,0.00197338,120210.0,120200.0,1.6281908]
[1752804304535,0.00197338,120210.0,120200.0,1.6279908]
[1752804304737,0.00197338,120210.0,120200.0,1.6279508]
[1752804305195,0.00197338,120210.0,120200.0,1.6278708]
[1752804306474,0.00197338,120210.0,120200.0,1.4853908]
[1752804306682,0.00197338,120210.0,120200.0,1.6277108]
[1752804306923,0.00197338,120210.0,120200.0,1.14128574]
[1752804307136,0.00197338,120210.0,120200.0,1.6277108]
[1752804308112,0.00197338,120210.0,120200.0,1.14128574]
[1752804308354,0.00197338,120210.0,120200.0,1.6277108]
[1752804308470,0.00197338,120210.0,120200.0,1.4853908]
[1752804308677,0.00297,120250.0,120240.0,0.04843263]
[1752804308883,0.00015045,120250.0,120240.0,1.18874891]
[1752804309086,0.00015045,120250.0,120240.0,1.18666974]
[1752804309531,0.00015045,120250.0,120240.0,0.70024468]
[1752804309735,0.00015045,120250.0,120240.0,0.64231496]
[1752804309960,0.00815045,120250.0,120240.0,0.64331496]
[1752804310170,0.00815045,120250.0,120240.0,0.78823496]
[1752804310622,0.00015045,120250.0,120240.0,0.78723496]
[1752804310832,0.00315045,120250.0,120240.0,0.78823496]
[1752804311030,0.00315045,120250.0,120240.0,0.87399458]
[1752804311187,0.00015045,120250.0,120240.0,1.21449964]
[1752804311394,0.00215045,120250.0,120240.0,0.87415458]
[1752804311864,0.00215045,120250.0,120240.0,0.87403458]
[1752804312062,0.00215045,120250.0,120240.0,0.72907458]
[1752804312263,0.00215045,120250.0,120240.0,0.87399458]
[1752804312519,0.00315045,120250.0,120240.0,0.87722458]
[1752804312746,0.00315045,120250.0,120240.0,0.79146496]
[1752804312956,0.00315045,120250.0,120240.0,0.78823496]
[1752804313186,0.00315045,120250.0,120240.0,1.28601628]
[1752804313410,0.00315045,120250.0,120240.0,0.64331496]
[1752804313628,0.00315045,120250.0,120240.0,0.78823496]
[1752804313868,0.00315045,120250.0,120240.0,1.28601628]
[1752804315206,0.00315045,120250.0,120240.0,1.28597628]
[1752804316273,0.00315045,120250.0,120240.0,1.3717359]
[1752804316489,0.00315045,120250.0,120240.0,0.78819496]
[1752804316896,0.00315045,120250.0,120240.0,1.28597628]
[1752804318637,0.00315045,120250.0,120240.0,0.64331496]
[1752804318865,0.00811045,120250.0,120240.0,1.25349628]
[1752804319083,0.00811045,120250.0,120240.0,1.30035643]
[1752804319294,0.00811045,120250.0,120240.0,1.26951628]
[1752804319511,0.00811045,120250.0,120240.0,1.6406076]
[1752804319512,0.00315045,120250.0,120240.0,1.6406076]
[1752804319773,0.00315045,120250.0,120240.0,1.79994845]
[1752804320044,0.00315045,120250.0,120240.0,1.65514845]
[1752804320302,0.00315045,120250.0,120240.0,1.88570807]
[1752804320534,0.00215045,120250.0,120240.0,1.88570807]
[1752804321051,0.00115045,120250.0,120240.0,1.88670807]
[1752804321275,0.00215045,120250.0,120240.0,1.89058807]
[1752804321969,0.00215045,120250.0,120240.0,1.74590807]
[1752804322191,0.00215045,120250.0,120240.0,1.29246628]
[1752804323049,0.00215045,120250.0,120240.0,1.14782628]
[1752804323263,0.00215045,120250.0,120240.0,1.29238628]
[1752804323481,0.00215045,120250.0,120240.0,1.14782628]
[1752804323707,0.05631212,120250.0,120240.0,0.006]
[1752804323922,0.28901957,120250.0,120240.0,0.006]
[1752804324574,0.28801957,120250.0,120240.0,0.004]
[1752804325035,0.19075062,120240.0,120230.0,0.18298247]
[1752804325287,0.19588062,120240.0,120230.0,0.19129965]
[1752804325701,0.19588062,120240.0,120230.0,0.18298247]
[1752804326348,0.17466522,120230.0,120220.0,0.53131542]
[1752804326555,0.17681522,120230.0,120220.0,0.19131542]
[1752804326773,0.17979522,120230.0,120220.0,0.19131542]
[1752804326988,0.21089522,120230.0,120220.0,0.18299762]
[1752804327204,0.21089522,120230.0,120220.0,0.19131542]
[1752804327440,0.00831766,120220.0,120210.0,0.51467052]
[1752804327689,0.18812734,120220.0,120210.0,0.18298908]
[1752804327908,0.19644542,120220.0,120210.0,0.19130757]
[1752804328351,0.18812776,120220.0,120210.0,0.18298915]
[1752804328566,0.18812776,120220.0,120210.0,0.19130764]
[1752804328792,0.03008333,120220.0,120210.0,0.2507053]
[1752804329026,0.02176532,120220.0,120210.0,0.2507053]
[1752804329248,0.00513,120220.0,120210.0,0.19962593]
[1752804329468,0.01961401,120230.0,120220.0,0.19131507]
[1752804329695,0.17396077,120230.0,120220.0,0.19131507]
[1752804329919,0.18227809,120230.0,120220.0,0.19131507]
[1752804330367,0.21306331,120230.0,120220.0,0.19131521]
[1752804330571,0.37072965,120230.0,120220.0,0.18299762]
[1752804330783,0.37072965,120230.0,120220.0,0.001]
[1752804330999,0.35509522,120230.0,120220.0,0.16836167]
[1752804331230,0.1737614,120230.0,120220.0,0.19231507]
[1752804331441,0.19642923,120230.0,120220.0,0.18399748]
[1752804331654,0.36019373,120230.0,120220.0,0.16836167]
[1752804331864,0.35593508,120230.0,120220.0,0.17667968]
[1752804332077,0.35593508,120230.0,120220.0,0.17567975]
[1752804332288,0.35593508,120230.0,120220.0,0.18399776]
[1752804332513,0.35693508,120230.0,120220.0,0.18399776]
[1752804332701,0.35693508,120230.0,120220.0,0.17567975]
[1752804332906,0.20497783,120230.0,120220.0,0.16736167]
[1752804333117,0.20497783,120230.0,120220.0,0.001]
[1752804333323,0.34841783,120230.0,120220.0,0.001]
[1752804333750,0.29048811,120230.0,120220.0,0.001]
[1752804333969,0.3568754,120230.0,120220.0,0.001]
[1752804334179,0.5002354,120230.0,120220.0,0.001]
[1752804334798,0.19133077,120210.0,120200.0,0.18302778]
[1752804335047,0.33982077,120210.0,120200.0,0.18302778]
[1752804335503,0.34805947,120210.0,120200.0,0.19966595]
[1752804335934,0.34805947,120210.0,120200.0,0.1913469]
[1752804336415,0.34074125,120210.0,120200.0,0.1913469]
[1752804336646,0.34074125,120210.0,120200.0,0.18302778]
[1752804336647,0.33242283,120210.0,120200.0,0.18302778]
[1752804336849,0.33342283,120210.0,120200.0,0.18402778]
[1752804337092,0.16704733,120210.0,120200.0,0.28604464]
[1752804337290,0.33342283,120210.0,120200.0,0.28604464]
[1752804337492,0.3417416,120210.0,120200.0,0.28604464]
[1752804337691,0.1753661,120210.0,120200.0,0.28604464]
[1752804337903,0.16704733,120210.0,120200.0,0.20066588]
[1752804338347,0.16676733,120210.0,120200.0,0.20066588]
[1752804338561,0.16676664,120210.0,120200.0,0.20066588]
[1752804338773,0.15327815,120210.0,120200.0,0.72041556]
[1752804338981,0.14496,120210.0,120200.0,0.80617518]
[1752804339823,0.14496,120210.0,120200.0,0.80925518]
[1752804340030,0.002,120210.0,120200.0,1.23476546]
[1752804340426,0.002,120210.0,120200.0,1.37760546]
[1752804340872,0.002,120210.0,120200.0,1.23476546]
[1752804341083,0.002,120210.0,120200.0,1.86379514]
[1752804341315,0.002,120210.0,120200.0,0.74849578]
[1752804341526,0.002,120210.0,120200.0,1.37752546]
[1752804341729,0.001,120210.0,120200.0,1.23476546]
[1752804341938,0.001,120210.0,120200.0,1.37748546]
[1752804342146,0.002,120210.0,120200.0,1.38048546]
[1752804342570,0.001,120210.0,120200.0,1.37948546]
[1752804342982,0.002,120210.0,120200.0,1.38344546]
[1752804343441,0.002,120210.0,120200.0,1.24076546]
[1752804343874,0.002,120210.0,120200.0,1.38324546]
[1752804344480,0.00415,120210.0,120200.0,0.77665616]
[1752804344621,0.01544815,120210.0,120200.0,1.26084584]
[1752804344819,0.00713,120210.0,120200.0,1.26084584]
[1752804345026,0.07053729,120210.0,120200.0,0.77665616]
[1752804345229,0.01246822,120210.0,120200.0,0.63425616]
[1752804345445,0.0320852,120210.0,120200.0,0.63217616]
[1752804345813,0.0320852,120210.0,120200.0,0.77461616]
[1752804346018,0.03208527,120210.0,120200.0,0.77461616]
[1752804346846,0.20677947,120210.0,120200.0,0.007]
[1752804347069,0.25653012,120210.0,120200.0,0.007]
[1752804347299,0.28833012,120210.0,120200.0,0.007]
[1752804347537,0.28833012,120210.0,120200.0,0.004]
[1752804347538,0.28733012,120210.0,120200.0,0.004]
[1752804347964,0.43065012,120210.0,120200.0,0.004]
[1752804349239,0.01663837,120200.0,120190.0,0.19967042]
[1752804349446,0.02176837,120200.0,120190.0,0.19982042]
[1752804350094,0.03008776,120200.0,120190.0,0.19982042]
[1752804350503,0.03108776,120200.0,120190.0,0.20282042]
[1752804350721,0.03108728,120200.0,120190.0,0.21114023]
[1752804350933,0.02276803,120200.0,120190.0,0.28375329]
[1752804351135,0.01544898,120200.0,120190.0,0.28575329]
[1752804351343,0.15744891,120200.0,120190.0,0.28783329]
[1752804351583,0.15744891,120200.0,120190.0,0.21522023]
[1752804351773,0.17408721,120200.0,120190.0,0.21522023]
[1752804352194,0.17408721,120200.0,120190.0,0.21314023]
[1752804352398,0.16576796,120200.0,120190.0,0.21314023]
[1752804352606,0.17408708,120200.0,120190.0,0.21314023]
[1752804353006,0.15744891,120200.0,120190.0,0.21511023]
[1752804353216,0.15446891,120200.0,120190.0,0.30086985]
[1752804353564,0.144,120200.0,120190.0,0.80213953]
[1752804353957,0.16895701,120200.0,120190.0,0.78713953]
[1752804354180,0.16895701,120200.0,120190.0,0.78689019]
[1752804354181,0.002,120200.0,120190.0,0.78689019]
[1752804354397,0.002,120200.0,120190.0,0.82024019]
[1752804355724,0.002,120200.0,120190.0,0.33397051]
[1752804355933,0.002,120200.0,120190.0,0.82024019]
[1752804356547,0.02695735,120200.0,120190.0,0.78689019]
[1752804356971,0.03200735,120200.0,120190.0,0.78689019]
[1752804357180,0.19839718,120200.0,120190.0,0.19015101]
[1752804357404,0.19007806,120200.0,120190.0,0.19650089]
[1752804357842,0.19007806,120200.0,120190.0,0.18818101]
[1752804358052,0.33283806,120200.0,120190.0,0.18818101]
[1752804358474,0.19007806,120200.0,120190.0,0.19650082]
[1752804358679,0.34111752,120200.0,120190.0,0.19650082]
[1752804359719,0.34111752,120200.0,120190.0,0.18818101]
[1752804359927,0.32443881,120200.0,120190.0,0.17986106]
[1752804360131,0.32443881,120200.0,120190.0,0.18818101]
[1752804360350,0.32443881,120200.0,120190.0,0.19650082]
[1752804360351,0.18175881,120200.0,120190.0,0.19650082]
[1752804360558,0.32443881,120200.0,120190.0,0.19650082]
[1752804360750,0.33275806,120200.0,120190.0,0.20482056]
[1752804361062,0.33275806,120200.0,120190.0,0.18818101]
[1752804361265,0.19007806,120200.0,120190.0,0.17987334]
[1752804361474,0.19007806,120200.0,120190.0,0.18819343]
[1752804361704,0.33259806,120200.0,120190.0,0.19651345]
[1752804361912,0.33259806,120200.0,120190.0,0.20483333]
[1752804362868,0.33259806,120200.0,120190.0,0.29891276]
[1752804363293,0.33259806,120200.0,120190.0,0.18819343]
[1752804363544,0.39898535,120200.0,120190.0,0.00515]
[1752804363749,0.2808461,120200.0,120190.0,0.00515]
[1752804363953,0.4496651,120200.0,120190.0,0.00515]
[1752804364161,0.33226657,120200.0,120190.0,0.00515]
[1752804364381,0.4496251,120200.0,120190.0,0.00515]
[1752804364603,0.4486251,120200.0,120190.0,0.00315]
[1752804365041,0.4476251,120200.0,120190.0,0.00115]
[1752804365254,0.4486251,120200.0,120190.0,0.00215]
[1752804365497,0.4476251,120200.0,120190.0,0.00115]
[1752804365915,0.4566251,120200.0,120190.0,0.00215]
[1752804366122,0.4566251,120200.0,120190.0,0.00115]
[1752804366323,0.5166251,120200.0,120190.0,0.00115]
[1752804366888,0.5226251,120200.0,120190.0,0.00215]
[1752804367269,0.3788251,120200.0,120190.0,0.00215]
[1752804367467,0.31243781,120200.0,120190.0,0.00215]
[1752804367766,0.36317781,120200.0,120190.0,0.00215]
[1752804368276,0.35409881,120200.0,120190.0,0.00215]
[1752804369115,0.35409881,120200.0,120190.0,0.18519343]
[1752804369338,0.33819881,120200.0,120190.0,0.18519343]
[1752804369562,0.33819881,120200.0,120190.0,0.19351338]
[1752804369991,0.02836884,120200.0,120190.0,0.22285028]
[1752804370198,0.17992816,120200.0,120190.0,0.20183326]
[1752804370442,0.19656646,120200.0,120190.0,0.20183326]
[1752804370660,0.36295643,120200.0,120190.0,0.19351345]
[1752804370896,0.35463738,120200.0,120190.0,0.19351345]
[1752804371108,0.34631813,120200.0,120190.0,0.18519343]
[1752804371331,0.32967935,120200.0,120190.0,0.17687334]
[1752804372301,0.32955935,120200.0,120190.0,0.00215]
[1752804372770,0.36025935,120200.0,120190.0,0.00215]
[1752804373848,0.36025935,120200.0,120190.0,0.16855319]
[1752804374054,0.21713935,120200.0,120190.0,0.17687334]
[1752804374326,0.32923935,120200.0,120190.0,0.17687334]
[1752804374535,0.32923935,120200.0,120190.0,0.00215]
[1752804374738,0.32919935,120200.0,120190.0,0.00215]
[1752804374947,0.34441935,120200.0,120190.0,0.00215]
[1752804375195,0.35941935,120200.0,120190.0,0.00215]
[1752804376292,0.27673935,120200.0,120190.0,0.00215]
[1752804376518,0.41941935,120200.0,120190.0,0.00215]
[1752804378899,0.38911935,120200.0,120190.0,0.00215]
[1752804379825,0.40471935,120200.0,120190.0,0.00215]
[1752804380559,0.41991935,120200.0,120190.0,0.00215]
[1752804382240,0.27723935,120200.0,120190.0,0.00215]
[1752804382406,0.91742979,120200.0,120190.0,0.00215]
[1752804382650,1.92423051,120200.0,120190.0,0.00215]
[1752804382874,0.51472321,120190.0,120180.0,1e-08]
[1752804383097,1.19059599,120190.0,120180.0,1e-08]
[1752804383305,1.34689684,120190.0,120180.0,1e-08]
[1752804383568,1.20513684,120190.0,120180.0,1e-08]
[1752804383982,1.34701684,120190.0,120180.0,1e-08]
[1752804384207,1.20613684,120190.0,120180.0,1e-08]
[1752804384434,1.35701684,120190.0,120180.0,0.00100001]
[1752804384655,1.21513684,120190.0,120180.0,0.00100001]
[1752804384871,1.35697684,120190.0,120180.0,0.00100001]
[1752804385078,1.29058955,120190.0,120180.0,0.00100001]
[1752804385280,1.13974955,120190.0,120180.0,1e-08]
[1752804385494,1.29888055,120190.0,120180.0,0.00100001]
[1752804385968,0.66555449,120190.0,120180.0,0.00100001]
[1752804386196,0.80799449,120190.0,120180.0,0.00100001]
[1752804386414,1.19352202,120190.0,120180.0,0.00100001]
[1752804386636,1.33604202,120190.0,120180.0,0.00100001]
[1752804387063,0.84905681,120190.0,120180.0,0.00100001]
[1752804387298,1.30960055,120190.0,120180.0,0.00100001]
[1752804387499,1.30960055,120190.0,120180.0,1e-08]
[1752804388951,1.35960055,120190.0,120180.0,1e-08]
[1752804389269,1.43816762,120190.0,120180.0,1e-08]
[1752804389839,1.43792762,120190.0,120180.0,1e-08]
[1752804390306,1.29564762,120190.0,120180.0,1e-08]
[1752804390702,0.1892786,120180.0,120170.0,0.0002]
[1752804390931,0.82044538,120180.0,120170.0,0.0002]
[1752804391096,1.04073202,120180.0,120170.0,1e-08]
[1752804391300,0.21530396,120150.0,120140.0,0.00305]
[1752804391478,0.93243945,120150.0,120140.0,0.00305]
[1752804391675,0.93564945,120150.0,120140.0,0.00305]
[1752804391936,0.46758024,120150.0,120140.0,0.00305]
[1752804392261,1.29452545,120150.0,120140.0,0.00305]
[1752804392481,1.15200545,120150.0,120140.0,0.00305]
[1752804392659,1.29613048,120150.0,120140.0,0.00305]
[1752804392860,1.16767133,120150.0,120140.0,0.00305]
[1752804393285,1.30963133,120150.0,120140.0,0.00305]
[1752804393705,1.31163133,120150.0,120140.0,0.00305]
[1752804393831,1.30959133,120150.0,120140.0,0.00305]
[1752804394234,1.32006768,120150.0,120140.0,0.00305]
[1752804394440,0.83308247,120150.0,120140.0,0.00305]
[1752804394722,0.69516247,120150.0,120140.0,0.00305]
[1752804395042,1.32506768,120150.0,120140.0,0.00305]
[1752804395264,0.51479592,120140.0,120130.0,0.00758673]
[1752804395474,1.25191198,120140.0,120130.0,1e-08]
[1752804395685,1.60969345,120140.0,120130.0,1e-08]
[1752804395895,0.95043705,120140.0,120130.0,1e-08]
[1752804396130,1.58126226,120140.0,120130.0,1e-08]
[1752804396541,1.43742226,120140.0,120130.0,1e-08]
[1752804396752,1.58138226,120140.0,120130.0,1e-08]
[1752804397501,1.09439705,120140.0,120130.0,1e-08]
[1752804397722,1.58138226,120140.0,120130.0,1e-08]
[1752804397928,1.44942226,120140.0,120130.0,1e-08]
[1752804398135,0.96243705,120140.0,120130.0,1e-08]
[1752804398339,1.63250014,120140.0,120130.0,1e-08]
[1752804398762,1.51423288,120140.0,120130.0,1e-08]
[1752804398980,1.46423288,120140.0,120130.0,1e-08]
[1752804399198,1.65835288,120140.0,120130.0,1e-08]
[1752804399630,1.51370691,120140.0,120130.0,1e-08]
[1752804399883,1.65790691,120140.0,120130.0,1e-08]
[1752804400088,1.68359965,120140.0,120130.0,1e-08]
[1752804400285,1.68727617,120140.0,120120.0,1e-08]
[1752804400507,0.56006587,120120.0,120110.0,1e-08]
[1752804400735,0.66008043,120110.0,120100.0,1e-08]
[1752804400950,0.56923629,120090.0,120080.0,1e-08]
[1752804401160,0.17488326,120080.0,120070.0,1e-08]
[1752804401405,1.36200283,120080.0,120070.0,1e-08]
[1752804401640,1.27440947,120080.0,120070.0,1e-08]
[1752804401870,1.55733375,120080.0,120070.0,1e-08]
[1752804402090,0.22996694,120070.0,120060.0,1e-08]
[1752804402317,0.85775243,120070.0,120060.0,1e-08]
[1752804402535,0.18328702,120030.0,120020.0,0.03410001]
[1752804402750,0.18328702,120030.0,120020.0,0.03622001]
[1752804402968,0.32936702,120030.0,120020.0,0.00332001]
[1752804403174,0.4180873,120030.0,120020.0,0.00120001]
[1752804403377,0.2740873,120030.0,120020.0,0.00120001]
[1752804403586,0.2760873,120030.0,120020.0,0.00120001]
[1752804403823,0.42011733,120030.0,120020.0,0.00120001]
[1752804404031,0.27623733,120030.0,120020.0,0.00332001]
[1752804404264,0.42871764,120030.0,120020.0,0.00332001]
[1752804404483,0.42011733,120030.0,120020.0,0.00332001]
[1752804404702,0.00215003,120030.0,120020.0,0.71627909]
[1752804404961,0.14603003,120030.0,120020.0,0.6550535]
[1752804405420,0.00215003,120030.0,120020.0,1.24208984]
[1752804405621,0.14595003,120030.0,120020.0,1.24208984]
[1752804405821,0.14599003,120030.0,120020.0,1.24208984]
[1752804407106,0.14599003,120030.0,120020.0,1.15633022]
[1752804407561,0.14499003,120030.0,120020.0,1.15633022]
[1752804408132,0.14699003,120030.0,120020.0,1.14973022]
[1752804408332,0.14699003,120030.0,120020.0,1.15185022]
[1752804408586,0.14699003,120030.0,120020.0,1.23760984]
[1752804408996,0.00315003,120030.0,120020.0,0.75062463]
[1752804409199,0.14663003,120030.0,120020.0,1.23760984]
[1752804409581,0.00315003,120030.0,120020.0,1.23760984]
[1752804409917,0.09137186,120070.0,120060.0,0.20717045]
[1752804410127,0.21830559,120070.0,120060.0,0.26667938]
[1752804410338,0.14319364,120070.0,120060.0,0.26667938]
[1752804410541,0.32641959,120070.0,120060.0,0.20929045]
[1752804410699,0.32641959,120070.0,120060.0,0.19263246]
[1752804410898,0.46981959,120070.0,120060.0,0.20096149]
[1752804411100,0.0166586,120050.0,120040.0,0.18208763]
[1752804411329,0.25797314,120050.0,120040.0,0.36595055]
[1752804411500,0.24298568,120050.0,120040.0,0.52423112]
[1752804411705,0.40954342,120050.0,120040.0,0.37412]
[1752804411936,0.39288419,120050.0,120040.0,0.37412]
[1752804412344,0.39488419,120050.0,120040.0,0.37412]
[1752804412596,0.06838729,120050.0,120040.0,0.55739215]
[1752804412807,0.15456923,120050.0,120040.0,1.0620377]
[1752804413009,0.1628986,120050.0,120040.0,1.0637277]
[1752804413215,0.15456923,120050.0,120040.0,1.0637277]
[1752804413793,0.003,120050.0,120040.0,1.14948732]
[1752804413996,0.003,120050.0,120040.0,1.24953845]
[1752804414859,0.003,120050.0,120040.0,1.73652366]
[1752804415506,0.001,120050.0,120040.0,1.73652366]
[1752804415716,0.001,120050.0,120040.0,1.24953845]
[1752804415922,0.001,120050.0,120040.0,1.20487742]
[1752804416125,0.001,120050.0,120040.0,1.1518178]
[1752804416364,0.002,120050.0,120040.0,1.1528178]
[1752804420513,0.002,120050.0,120040.0,1.63980301]
[1752804420988,0.002,120050.0,120040.0,1.1528178]
[1752804421214,0.002,120050.0,120040.0,1.23857742]
[1752804421704,0.002,120050.0,120040.0,1.72556263]
[1752804422773,0.002,120050.0,120040.0,1.16114841]
[1752804422999,0.002,120050.0,120040.0,1.15281821]
[1752804423221,0.01032923,120050.0,120040.0,1.16114841]
[1752804423443,0.002,120050.0,120040.0,1.16947855]
[1752804423661,0.002,120050.0,120040.0,1.26356824]
[1752804424085,0.002,120050.0,120040.0,1.25612824]
[1752804424298,0.002,120050.0,120040.0,1.24779817]
[1752804424520,0.002,120050.0,120040.0,1.25612824]
[1752804425804,0.002,120050.0,120040.0,1.22719075]
[1752804426042,0.002,120050.0,120040.0,1.23552082]
[1752804427590,0.01032923,120050.0,120040.0,1.22719075]
[1752804427796,0.002,120050.0,120040.0,1.22719075]
[1752804427933,0.002,120050.0,120040.0,1.24398315]
[1752804428134,0.002,120050.0,120040.0,1.23565308]
[1752804428362,0.01032923,120050.0,120040.0,1.23565308]
[1752804428578,0.002,120050.0,120040.0,1.24398315]
[1752804428778,0.002,120050.0,120040.0,1.22732294]
[1752804428981,0.0103293,120050.0,120040.0,1.22732294]
[1752804429323,0.0103293,120050.0,120040.0,0.63631867]
[1752804429324,0.17692655,120050.0,120040.0,0.63631867]
[1752804429476,0.33061648,120050.0,120040.0,0.49510521]
[1752804429679,0.33061648,120050.0,120040.0,0.49298521]
[1752804429680,0.19053648,120050.0,120040.0,0.49298521]
[1752804429893,0.33385648,120050.0,120040.0,0.49298521]
[1752804430092,0.19053648,120050.0,120040.0,0.49298521]
[1752804430306,0.33529648,120050.0,120040.0,0.49298521]
[1752804430877,0.19053648,120050.0,120040.0,0.50157378]
[1752804431090,0.19053648,120050.0,120040.0,0.49298521]
[1752804431302,0.33521648,120050.0,120040.0,0.49298521]
[1752804431952,0.19053648,120050.0,120040.0,0.49298521]
[1752804432198,0.33521648,120050.0,120040.0,0.49298521]
[1752804433256,0.19053648,120050.0,120040.0,0.49298521]
[1752804433455,0.33501648,120050.0,120040.0,0.49298521]
[1752804434017,0.33501648,120050.0,120040.0,0.50176684]
[1752804434245,0.33501648,120050.0,120040.0,0.67670837]
[1752804434446,0.34318627,120050.0,120040.0,0.67038796]
[1752804434646,0.33485676,120050.0,120040.0,0.68704892]
[1752804434844,0.33485676,120050.0,120040.0,0.69537926]
[1752804435465,0.002,120050.0,120040.0,0.84638066]
[1752804435685,0.002,120050.0,120040.0,0.93214028]
[1752804435686,0.14616,120050.0,120040.0,0.93214028]
[1752804435913,0.002,120050.0,120040.0,0.93214028]
[1752804436128,0.14608,120050.0,120040.0,0.93214028]
[1752804436334,0.146,120050.0,120040.0,0.93214028]
[1752804436545,0.002,120050.0,120040.0,1.27214028]
[1752804436767,0.01865867,120050.0,120040.0,0.96188712]
[1752804436991,0.33445648,120050.0,120040.0,0.346]
[1752804437204,0.40817426,120050.0,120040.0,0.006]
[1752804437426,0.40817426,120050.0,120000.0,0.17681475]
[1752804437427,0.19108527,120010.0,120000.0,0.01018673]
[1752804437642,0.53700527,120010.0,120000.0,0.01018673]
[1752804437863,0.38022527,120010.0,120000.0,0.01018673]
[1752804438113,0.3885577,120010.0,120000.0,0.01018673]
[1752804438325,0.5324377,120010.0,120000.0,0.01018673]
[1752804438550,0.19893033,120010.0,120000.0,0.49917194]
[1752804438765,0.16778493,120010.0,120000.0,0.66633688]
[1752804438980,0.3344377,120010.0,120000.0,0.67668014]
[1752804439203,0.3344377,120010.0,120000.0,0.01268501]
[1752804439204,0.32606527,120010.0,120000.0,0.01268501]
[1752804439421,0.32602527,120010.0,120000.0,0.01268501]
[1752804439872,0.42381256,120010.0,120000.0,0.01268501]
[1752804440748,0.40841256,120010.0,120000.0,0.01268501]
[1752804442076,0.39213256,120010.0,120000.0,0.01268501]
[1752804442288,0.25698485,120010.0,120000.0,0.19601798]
[1752804442514,0.21178729,120010.0,120000.0,0.71709894]
[1752804442720,0.1454,120010.0,120000.0,0.71709894]
[1752804442936,0.1454,120010.0,120000.0,0.80285856]
[1752804443141,0.002,120010.0,120000.0,1.25737969]
[1752804443358,0.14532,120010.0,120000.0,1.25906969]
[1752804443592,0.34000984,120010.0,120000.0,0.53601805]
[1752804443801,0.34834247,120010.0,120000.0,0.53601805]
[1752804444028,0.33167796,120010.0,120000.0,0.01268501]
[1752804444444,0.33167796,120010.0,120000.0,0.18768493]
[1752804444678,0.33167796,120010.0,120000.0,0.01268501]
[1752804444899,0.33167796,120010.0,120000.0,0.18768493]
[1752804445314,0.00504,120010.0,120000.0,0.19601805]
[1752804445518,0.002,120010.0,120000.0,0.71526915]
[1752804445725,0.14556,120010.0,120000.0,0.73176915]
[1752804445944,0.15389215,120010.0,120000.0,0.24478394]
[1752804446149,0.18192943,120010.0,120000.0,0.21268408]
[1752804446363,0.17359673,120010.0,120000.0,0.70800178]
[1752804447022,0.18192923,120010.0,120000.0,0.20435082]
[1752804447246,0.14876,120010.0,120000.0,0.69966887]
[1752804447458,0.002,120010.0,120000.0,0.69966887]
[1752804447666,0.14572,120010.0,120000.0,0.71536887]
[1752804447896,0.15405201,120010.0,120000.0,0.71536887]
[1752804448115,0.002,120010.0,120000.0,0.71536887]
[1752804448326,0.15401208,120010.0,120000.0,0.22838366]
[1752804448549,0.15401201,120010.0,120000.0,0.71536887]
[1752804448756,0.01033201,120010.0,120000.0,0.71536887]
[1752804448957,0.14572,120010.0,120000.0,0.71739887]
[1752804449168,0.002,120010.0,120000.0,0.80315849]
[1752804449376,0.01866444,120010.0,120000.0,0.80315849]
[1752804449623,0.002,120010.0,120000.0,0.80315849]
[1752804449836,0.15393215,120010.0,120000.0,0.71739887]
[1752804450040,0.1705968,120010.0,120000.0,0.71739887]
[1752804450251,0.0290068,120010.0,120000.0,0.71739887]
[1752804450456,0.1839793,120010.0,120000.0,0.70169887]
[1752804450919,0.0403793,120010.0,120000.0,0.70169887]
[1752804451456,0.3337677,120010.0,120000.0,0.01268501]
[1752804451660,0.3337677,120010.0,120000.0,0.19601819]
[1752804452000,0.3337677,120010.0,120000.0,0.69133645]
[1752804452180,0.16711493,120010.0,120000.0,0.7080022]
[1752804452711,0.16711465,120010.0,120000.0,0.7100322]
[1752804452920,0.17544715,120010.0,120000.0,0.7100322]
[1752804453097,0.16711465,120010.0,120000.0,0.7100322]
[1752804453521,0.17240659,120010.0,120000.0,0.79579182]
[1752804453735,0.18073902,120010.0,120000.0,0.7100322]
[1752804453987,0.18073902,120010.0,120000.0,0.70169936]
[1752804454231,0.03733902,120010.0,120000.0,0.7100322]
[1752804454462,0.02699659,120010.0,120000.0,0.76190632]
[1752804454691,0.15353201,120010.0,120000.0,0.8630166]
[1752804454924,0.01033201,120010.0,120000.0,0.8630166]
[1752804455146,0.1452,120010.0,120000.0,0.8630166]
[1752804455360,0.002,120010.0,120000.0,0.87755745]
[1752804455569,0.14512,120010.0,120000.0,1.70623266]
[1752804455809,0.14512,120010.0,120000.0,1.21924745]
[1752804456443,0.14512,120010.0,120000.0,1.70623266]
[1752804456871,0.14496,120010.0,120000.0,1.70623266]
[1752804457086,0.002,120010.0,120000.0,1.70623266]
[1752804457377,0.14492,120010.0,120000.0,1.21924745]
[1752804457585,0.14492,120010.0,120000.0,1.70623266]
[1752804457969,0.14476,120010.0,120000.0,1.70623266]
[1752804459729,0.002,120010.0,120000.0,1.70623266]
[1752804460393,0.002,120010.0,120000.0,1.75623266]
[1752804460617,0.06638729,120040.0,120030.0,0.57665877]
[1752804460838,0.06638729,120040.0,120030.0,1.2271791]
[1752804461073,0.06638729,120060.0,120050.0,0.57662684]
[1752804461288,0.06638729,120060.0,120050.0,1.63813754]
[1752804461511,0.20878729,120060.0,120050.0,1.63813754]
[1752804461950,0.20878729,120060.0,120050.0,1.63982754]
[1752804462165,0.20878729,120060.0,120050.0,1.72558716]
[1752804462416,0.06638729,120080.0,120070.0,0.19155407]
[1752804462641,0.06638729,120080.0,120070.0,0.69586928]
[1752804462642,0.20862729,120080.0,120070.0,0.69586928]
[1752804462855,0.20862729,120080.0,120070.0,0.7816289]
[1752804463071,0.20862729,120080.0,120070.0,0.79002744]
[1752804463292,0.20866729,120080.0,120070.0,1.24527857]
[1752804463958,0.21366729,120080.0,120070.0,1.23788003]
[1752804464168,0.07138729,120080.0,120070.0,1.23957003]
[1752804464806,0.07138729,120080.0,120070.0,1.38169003]
[1752804464988,0.07138729,120080.0,120070.0,1.38269003]
[1752804465657,0.005,120080.0,120070.0,1.38269003]
[1752804465870,0.005,120080.0,120070.0,1.39110776]
[1752804466720,0.142,120100.0,120090.0,0.56332218]
[1752804466937,0.09440092,120120.0,120110.0,0.19149028]
[1752804467155,0.06638729,120120.0,120110.0,0.68050549]
[1752804467374,0.20842729,120120.0,120110.0,1.02050549]
[1752804467560,0.20842729,120120.0,120110.0,1.23811624]
[1752804467958,0.06653785,120120.0,120110.0,1.23811624]